fUSD/lending_fUSD_20250107
["ID","MTS","AMOUNT","RATE_DAILY","PERIOD"]
[347997175,1736263840815,-22667.09119695,0.0001,2]
[347997177,1736263840824,-43138.47979387,0.0001,2]
[347997179,1736263840836,-1073.39588492,0.0001,2]
[347997181,1736263840848,-72477.9741972,0.0001,2]
[347997190,1736263840923,-16352.57669339,0.0001,2]
[347997192,1736263840935,-526.94182674,0.0001,2]
[347997194,1736263840947,-941.61,0.0001,2]
[347997201,1736263840999,-7608.36164046,0.0001,2]
[347997203,1736263841011,-94292.45228189,0.0001,2]
[347997205,1736263841020,-4354.01924562,0.0001,2]
[347997207,1736263841032,-411.08824833,0.0001,2]
[347997209,1736263841043,-49340.58423905,0.0001,2]
[347997211,1736263841054,-98625.0,0.0001,2]
[347997214,1736263841072,-426.27575759,0.0001,2]
[347997217,1736263841084,-982.43337259,0.0001,2]
[347997219,1736263841095,-13816.39999953,0.0001,2]
[347997221,1736263841107,-4500.885099,0.0001,2]
[347997223,1736263841122,-2329.33248,0.0001,2]
[347997225,1736263841134,-1006.5,0.0001,2]
[347997228,1736263841145,-4922.7,0.0001,2]
[347997230,1736263841158,-1878.20318767,0.0001,2]
[347997232,1736263841169,-887.80834405,0.0001,2]
[347997319,1736263842021,-500.0,9.863e-05,2]
[347997321,1736263842031,-301.63068191,9.863e-05,2]
[347997323,1736263842040,-500.0,9.964e-05,2]
[347997325,1736263842050,-500.0,9.965e-05,2]
[347997327,1736263842061,-500.0,9.973e-05,2]
[347997329,1736263842071,-4751.60901853,0.0001,2]
[347997331,1736263842083,-8405.09805138,0.0001,2]
[347997333,1736263842094,-812.69979964,0.0001,2]
[347997336,1736263842104,-1517.47746186,0.0001,2]
[347997337,1736263842121,-1683.01713079,0.0001,2]
[347997339,1736263842130,-1588.59169312,0.0001,2]
[347997341,1736263842140,-1588.59169286,0.0001,2]
[347997344,1736263842151,-1588.59169286,0.0001,2]
[347997345,1736263842160,-1588.59169286,0.0001,2]
[347997348,1736263842170,-1588.59169286,0.0001,2]
[347997350,1736263842180,-1588.59169286,0.0001,2]
[347997352,1736263842191,-1588.59169286,0.0001,2]
[347997353,1736263842203,-1588.59169286,0.0001,2]
[347997356,1736263842213,-1462.19571068,0.00010048,2]
[347997358,1736263842223,-1588.59169286,0.00010072,2]
[347997360,1736263842234,-150.0,0.00010075,2]
[347997362,1736263842243,-150.0,0.00010097,2]
[347997364,1736263842252,-248.41138117,0.000101,2]
[347997366,1736263842263,-1000.0,0.00010113,2]
[347997367,1736263842273,-150.0,0.00010129,2]
[347997369,1736263842284,-5935.84206448,0.00010134,4]
[347997372,1736263842296,-1754.94049924,0.00010134,4]
[347997374,1736263842306,-491.41,0.00010137,2]
[347997376,1736263842315,-1304.49,0.00010137,2]
[347997378,1736263842325,-3143.61571997,0.00010137,2]
[347997380,1736263842337,-1211.33307153,0.00010137,2]
[347997382,1736263842349,-160.6012085,0.00010137,2]
[347997384,1736263842360,-331.84850888,0.00010137,2]
[347997387,1736263842378,-1496.55149112,0.00010137,2]
[347997389,1736263842388,-5701.5,0.00010137,2]
[347997391,1736263842398,-3083.97,0.00010137,2]
[347997393,1736263842407,-5138.6,0.00010137,2]
[347997394,1736263842417,-16018.72,0.00010137,2]
[347997396,1736263842426,-830.06,0.00010137,2]
[347997398,1736263842436,-1787.15,0.00010137,2]
[347997400,1736263842445,-2499.44850888,0.00010137,2]
[347997403,1736263842463,-1500.34175994,0.00010137,2]
[347997405,1736263842475,-905.69999991,0.00010137,2]
[347997408,1736263842487,-228.37973127,0.00010137,2]
[347997411,1736263842498,-484.0452179,0.00010137,2]
[347997414,1736263842510,-2317.7047821,0.00010137,2]
[347997416,1736263842520,-1131.9302179,0.00010137,2]
[347997418,1736263842531,-4406.95453084,0.00010137,2]
[347997420,1736263842543,-923.00813186,0.00010137,2]
[347997424,1736263842572,-2093.0471194,0.00010137,2]
[347997426,1736263842581,-4563.86,0.00010137,2]
[347997428,1736263842591,-1203.87763923,0.00010137,2]
[347997430,1736263842603,-292.94236077,0.00010137,2]
[347997432,1736263842618,-301.08125275,0.00010137,2]
[347997434,1736263842630,-559.31874725,0.00010137,2]
[347997436,1736263842640,-3680.6373193,0.00010137,2]
[347997438,1736263842651,-797.17940731,0.00010137,2]
[347997440,1736263842664,-211.70327339,0.00010137,2]
[347997442,1736263842674,-2860.17,0.00010137,2]
[347997444,1736263842684,-944.74,0.00010137,2]
[347997446,1736263842694,-7170.94,0.00010137,2]
[347997448,1736263842704,-9213.36,0.00010137,2]
[347997451,1736263842713,-540.9,0.00010137,2]
[347997452,1736263842723,-191.65184394,0.00010137,2]
[347997455,1736263842735,-633.10815606,0.00010137,2]
[347997457,1736263842745,-500.0,0.00010137,2]
[347997459,1736263842755,-3420.5,0.00010137,2]
[347997461,1736263842765,-874.68,0.00010137,2]
[347997464,1736263842774,-664.73,0.00010137,2]
[347997467,1736263842784,-500.0,0.00010137,2]
[347997469,1736263842794,-792.91,0.00010137,2]
[347997471,1736263842803,-912.97,0.00010137,2]
[347997473,1736263842813,-500.0,0.00010137,2]
[347997475,1736263842822,-500.0,0.00010137,2]
[347997478,1736263842832,-900.0,0.00010138,2]
[347997480,1736263842842,-161.05129517,0.00010139,2]
[347997482,1736263842852,-659.88451736,0.00010139,2]
[347997483,1736263842865,-150.0,0.00010148,2]
[347997484,1736263842876,-796.22,0.00010209,2]
[347997487,1736263842886,-150.0,0.00010213,2]
[347997488,1736263842896,-150.0,0.00010213,2]
[347997490,1736263842908,-1588.59169286,0.00010214,2]
[347997491,1736263842918,-1965.62,0.00010238,2]
[347997492,1736263842928,-1441.85,0.00010238,2]
[347997493,1736263842938,-2031.12,0.00010238,2]
[347997495,1736263842948,-766.9,0.00010238,2]
[347997497,1736263842958,-584.14,0.00010238,2]
[347997498,1736263842967,-500.0,0.00010238,2]
[347997501,1736263842977,-1347.38,0.00010238,2]
[347997503,1736263842986,-1337.9,0.00010238,2]
[347997506,1736263842996,-500.0,0.00010238,2]
[347997510,1736263843006,-726.31,0.00010238,2]
[347997514,1736263843016,-617.27,0.00010238,2]
[347997518,1736263843025,-1113.64,0.00010238,2]
[347997522,1736263843035,-519.08,0.00010238,2]
[347997526,1736263843044,-682.82,0.00010238,2]
[347997529,1736263843054,-767.32,0.00010238,2]
[347997532,1736263843063,-1790.9,0.00010238,2]
[347997534,1736263843073,-2333.72,0.00010238,2]
[347997536,1736263843082,-1842.07,0.00010238,2]
[347997538,1736263843092,-1453.48,0.00010238,2]
[347997540,1736263843101,-782.9,0.00010238,2]
[347997543,1736263843111,-1135.22,0.00010238,2]
[347997545,1736263843122,-500.0,0.00010238,2]
[347997547,1736263843135,-908.06,0.00010238,2]
[347997549,1736263843145,-925.35,0.00010238,2]
[347997551,1736263843154,-877.63,0.00010238,2]
[347997553,1736263843164,-579.05,0.00010238,2]
[347997555,1736263843174,-1845.34,0.00010238,2]
[347997557,1736263843184,-795.6,0.00010238,2]
[347997559,1736263843196,-2158.61,0.00010238,2]
[347997561,1736263843206,-714.94,0.00010238,2]
[347997563,1736263843216,-1826.77,0.00010238,2]
[347997590,1736263843448,-500.0,0.00010238,2]
[347997593,1736263843458,-849.05,0.00010238,2]
[347997596,1736263843468,-500.0,0.00010238,2]
[347997599,1736263843477,-636.08,0.00010238,2]
[347997602,1736263843487,-1448.38,0.00010238,2]
[347997604,1736263843497,-352.34791048,0.00010238,2]
[347997606,1736263843506,-1120.62,0.00010238,2]
[347997608,1736263843515,-1088.41,0.00010238,2]
[347997610,1736263843525,-3453.96,0.00010238,2]
[347997612,1736263843535,-1554.61,0.00010238,2]
[347997614,1736263843544,-1217.44,0.00010238,2]
[347997616,1736263843554,-500.0,0.00010238,2]
[347997618,1736263843563,-870.05,0.00010238,2]
[347997620,1736263843574,-672.55,0.00010238,2]
[347997622,1736263843583,-500.0,0.00010238,2]
[347997624,1736263843593,-739.47,0.00010238,2]
[347997625,1736263843603,-1595.12,0.00010238,2]
[347997627,1736263843615,-1563.31,0.00010238,2]
[347997630,1736263843625,-345.25910393,0.00010238,2]
[347997632,1736263843635,-500.0,0.00010238,2]
[347997634,1736263843645,-996.09,0.00010238,2]
[347997635,1736263843655,-1557.7,0.00010238,2]
[347997637,1736263843664,-883.86,0.00010238,2]
[347997641,1736263843674,-765.55,0.00010238,2]
[347997645,1736263843684,-500.0,0.00010238,2]
[347997649,1736263843694,-724.56,0.00010238,2]
[347997652,1736263843703,-2608.4,0.00010238,2]
[347997655,1736263843713,-1221.39,0.00010238,2]
[347997658,1736263843722,-500.0,0.00010238,2]
[347997661,1736263843732,-500.0,0.00010238,2]
[347997667,1736263843742,-824.39,0.00010238,2]
[347997671,1736263843752,-575.2,0.00010238,2]
[347997675,1736263843762,-731.88,0.00010238,2]
[347997679,1736263843771,-500.0,0.00010238,2]
[347997682,1736263843781,-500.0,0.00010238,2]
[347997685,1736263843791,-1460.43,0.00010238,2]
[347997688,1736263843801,-856.3,0.00010238,2]
[347997690,1736263843810,-3613.69,0.00010238,2]
[347997691,1736263843820,-500.0,0.00010238,2]
[347997693,1736263843829,-991.0,0.00010238,2]
[347997696,1736263843839,-500.0,0.00010238,2]
[347997697,1736263843850,-700.06512161,0.00010238,2]
[347997700,1736263843865,-141.74487839,0.00010238,2]
[347997702,1736263843876,-630.20880314,0.00010238,2]
[347997704,1736263843888,-470.91773345,0.00010238,2]
[347997707,1736263843909,-1995.05346341,0.00010238,2]
[347997709,1736263843919,-1442.72,0.00010238,2]
[347997711,1736263843930,-1892.87,0.00010238,2]
[347997713,1736263843939,-500.0,0.00010238,2]
[347997715,1736263843947,-774.17,0.00010238,2]
[347997717,1736263843955,-907.31,0.00010238,2]
[347997719,1736263843963,-513.49,0.00010238,2]
[347997721,1736263843974,-3237.55,0.00010238,2]
[347997722,1736263843982,-672.45,0.00010238,2]
[347997725,1736263843991,-752.65,0.00010238,2]
[347997727,1736263844000,-1344.94,0.00010238,2]
[347997728,1736263844008,-881.2,0.00010238,2]
[347997730,1736263844016,-2241.45,0.00010238,2]
[347997732,1736263844025,-500.0,0.00010238,2]
[347997734,1736263844034,-500.0,0.00010238,2]
[347997736,1736263844042,-1777.72,0.00010238,2]
[347997739,1736263844051,-1459.14,0.00010238,2]
[347997741,1736263844059,-731.55,0.00010238,2]
[347997743,1736263844067,-599.79,0.00010238,2]
[347997745,1736263844075,-678.26,0.00010238,2]
[347997747,1736263844083,-7213.42,0.00010238,2]
[347997749,1736263844092,-3211.96,0.00010238,2]
[347997751,1736263844099,-810.17,0.00010238,2]
[347997753,1736263844108,-1859.3,0.00010238,2]
[347997755,1736263844122,-518.99,0.00010238,2]
[347997757,1736263844131,-500.0,0.00010238,2]
[347997759,1736263844138,-857.54,0.00010238,2]
[347997760,1736263844147,-982.74,0.00010238,2]
[347997762,1736263844154,-1868.88,0.00010238,2]
[347997764,1736263844161,-1684.02,0.00010238,2]
[347997766,1736263844169,-1374.84,0.00010238,2]
[347997768,1736263844178,-6155.23,0.00010238,2]
[347997770,1736263844186,-527.17,0.00010238,2]
[347997772,1736263844201,-3798.27750016,0.00010238,2]
[347997775,1736263844215,-1608.47835184,0.00010238,2]
[347997777,1736263844225,-617.1,0.00010238,2]
[347997779,1736263844235,-960.41,0.00010238,2]
[347997780,1736263844246,-616.31,0.00010238,2]
[347997783,1736263844257,-500.0,0.00010238,2]
[347997784,1736263844268,-500.0,0.00010238,2]
[347997787,1736263844278,-821.48,0.00010238,2]
[347997788,1736263844288,-707.3,0.00010238,2]
[347997790,1736263844298,-1175.09,0.00010238,2]
[347997793,1736263844308,-500.0,0.00010238,2]
[347997795,1736263844319,-732.27,0.00010238,2]
[347997797,1736263844329,-2127.0,0.00010238,2]
[347997799,1736263844339,-5139.006052,0.00010238,2]
[347997801,1736263844349,-154.718865,0.00010238,2]
[347997802,1736263844358,-1326.01,0.00010238,2]
[347997804,1736263844371,-500.0,0.00010238,2]
[347997806,1736263844381,-1159.97,0.00010238,2]
[347997808,1736263844392,-992.99,0.00010238,2]
[347997810,1736263844401,-990.18,0.00010238,2]
[347997812,1736263844411,-4005.61,0.00010238,2]
[347997815,1736263844421,-500.0,0.00010238,2]
[347997817,1736263844432,-2494.45,0.00010238,2]
[347997819,1736263844441,-1210.53,0.00010238,2]
[347997821,1736263844451,-2494.45,0.00010238,2]
[347997822,1736263844460,-749.09,0.00010238,2]
[347997825,1736263844471,-591.84,0.00010238,2]
[347997826,1736263844480,-478.83971,0.00010238,2]
[347997828,1736263844490,-577.66,0.00010238,2]
[347997830,1736263844500,-712.92,0.00010238,2]
[347997832,1736263844510,-978.74,0.00010238,2]
[347997834,1736263844520,-1500.54,0.00010238,2]
[347997837,1736263844530,-1011.75,0.00010238,2]
[347997838,1736263844540,-1806.6,0.00010238,2]
[347997841,1736263844550,-500.0,0.00010238,2]
[347997843,1736263844560,-476.24339,0.00010238,2]
[347997845,1736263844569,-2941.9,0.00010238,2]
[347997847,1736263844580,-838.31,0.00010238,2]
[347997848,1736263844589,-621.15,0.00010238,2]
[347997850,1736263844599,-1397.55,0.00010238,2]
[347997852,1736263844608,-1538.83,0.00010238,2]
[347997855,1736263844621,-1429.25,0.00010238,2]
[347997857,1736263844632,-500.0,0.00010238,2]
[347997859,1736263844641,-1154.68,0.00010238,2]
[347997861,1736263844651,-524.95,0.00010238,2]
[347997863,1736263844660,-902.1,0.00010238,2]
[347997865,1736263844670,-716.48,0.00010238,2]
[347997867,1736263844680,-686.62,0.00010238,2]
[347997869,1736263844689,-765.88,0.00010238,2]
[347997871,1736263844699,-1845.75,0.00010238,2]
[347997873,1736263844708,-1842.45,0.00010238,2]
[347997875,1736263844718,-500.0,0.00010238,2]
[347997877,1736263844727,-7573.87,0.00010238,2]
[347997879,1736263844736,-1551.13,0.00010238,2]
[347997881,1736263844746,-798.85,0.00010238,2]
[347997883,1736263844755,-1030.35,0.00010238,2]
[347997885,1736263844764,-512.79,0.00010238,2]
[347997887,1736263844774,-818.81,0.00010238,2]
[347997889,1736263844784,-1425.05,0.00010238,2]
[347997891,1736263844793,-1084.42,0.00010238,2]
[347997893,1736263844802,-1500.25,0.00010238,2]
[347997895,1736263844811,-942.4,0.00010238,2]
[347997897,1736263844821,-500.0,0.00010238,2]
[347997899,1736263844830,-7527.44,0.00010238,2]
[347997901,1736263844840,-650.14,0.00010238,2]
[347997903,1736263844849,-1350.85,0.00010238,2]
[347997905,1736263844859,-306.685338,0.00010238,2]
[347997907,1736263844871,-3410.6,0.00010238,2]
[347997909,1736263844881,-1276.15,0.00010238,2]
[347997910,1736263844890,-932.71,0.00010238,2]
[347997912,1736263844900,-1746.81,0.00010238,2]
[347997915,1736263844912,-958.49,0.00010238,2]
[347997917,1736263844922,-500.0,0.00010238,2]
[347997919,1736263844931,-309.557701,0.00010238,2]
[347997920,1736263844941,-1669.23,0.00010238,2]
[347997923,1736263844951,-500.0,0.00010238,2]
[347997925,1736263844961,-1546.58,0.00010238,2]
[347997927,1736263844971,-984.81,0.00010238,2]
[347997929,1736263844981,-1410.46,0.00010238,2]
[347997931,1736263844991,-500.0,0.00010238,2]
[347997932,1736263845000,-972.03,0.00010238,2]
[347997934,1736263845009,-589.38,0.00010238,2]
[347997936,1736263845019,-739.84,0.00010238,2]
[347997938,1736263845028,-361.833374,0.00010238,2]
[347997940,1736263845037,-500.0,0.00010238,2]
[347997942,1736263845047,-500.0,0.00010238,2]
[347997944,1736263845056,-1204.56,0.00010238,2]
[347997946,1736263845066,-500.0,0.00010238,2]
[347997948,1736263845075,-888.08,0.00010238,2]
[347997950,1736263845084,-1988.71,0.00010238,2]
[347997953,1736263845094,-500.0,0.00010238,2]
[347997955,1736263845103,-500.0,0.00010238,2]
[347997957,1736263845115,-265.141287,0.00010238,2]
[347997958,1736263845124,-500.0,0.00010238,2]
[347997961,1736263845133,-500.0,0.00010238,2]
[347997962,1736263845143,-2541.66,0.00010238,2]
[347997965,1736263845152,-773.36,0.00010238,2]
[347997967,1736263845161,-500.0,0.00010238,2]
[347997969,1736263845171,-928.03,0.00010238,2]
[347997970,1736263845181,-500.0,0.00010238,2]
[347997972,1736263845191,-500.0,0.00010238,2]
[347997975,1736263845204,-500.0,0.00010239,2]
[347997977,1736263845214,-500.0,0.00010239,2]
[347997979,1736263845224,-556.89,0.00010239,2]
[347997981,1736263845234,-500.0,0.00010239,2]
[347997982,1736263845244,-500.0,0.00010239,2]
[347997984,1736263845254,-500.0,0.00010239,2]
[347997987,1736263845263,-610.77,0.00010239,2]
[347997989,1736263845275,-632.11,0.00010239,2]
[347997991,1736263845285,-720.43,0.00010239,2]
[347997993,1736263845294,-565.46,0.00010239,2]
[347997995,1736263845304,-500.0,0.00010239,2]
[347997997,1736263845314,-500.0,0.00010239,2]
[347997999,1736263845323,-712.94,0.00010239,2]
[347998000,1736263845333,-500.0,0.00010239,2]
[347998003,1736263845343,-549.28,0.00010239,2]
[347998005,1736263845353,-257.70192593,0.00010239,2]
[347998010,1736263845394,-242.29807407,0.00010239,2]
[347998012,1736263845404,-181.17113599,0.00010239,2]
[347998014,1736263845414,-692.43078994,0.00010239,2]
[347998017,1736263845433,-112.97921006,0.00010239,2]
[347998019,1736263845443,-500.0,0.00010239,2]
[347998021,1736263845452,-500.0,0.00010239,2]
[347998023,1736263845461,-500.0,0.00010239,2]
[347998025,1736263845471,-500.0,0.00010239,2]
[347998028,1736263845480,-664.53,0.00010239,2]
[347998030,1736263845490,-500.0,0.00010239,2]
[347998031,1736263845499,-500.0,0.00010239,2]
[347998034,1736263845510,-571.58,0.00010239,2]
[347998038,1736263845520,-599.27,0.00010239,2]
[347998040,1736263845530,-500.0,0.00010239,2]
[347998042,1736263845540,-734.19,0.00010239,2]
[347998044,1736263845550,-500.0,0.00010239,2]
[347998046,1736263845559,-500.0,0.00010239,2]
[347998049,1736263845569,-500.0,0.00010239,2]
[347998051,1736263845579,-500.0,0.00010239,2]
[347998053,1736263845588,-500.0,0.00010239,2]
[347998054,1736263845598,-671.16,0.00010239,2]
[347998057,1736263845608,-525.37,0.00010239,2]
[347998059,1736263845619,-500.0,0.00010239,2]
[347998061,1736263845629,-500.0,0.00010239,2]
[347998065,1736263845639,-500.0,0.00010239,2]
[347998068,1736263845649,-500.0,0.00010239,2]
[347998069,1736263845658,-500.0,0.00010239,2]
[347998071,1736263845668,-498.66779124,0.00010239,2]
[347998074,1736263845678,-765.69,0.00010239,2]
[347998076,1736263845689,-500.0,0.00010239,2]
[347998078,1736263845699,-500.0,0.00010239,2]
[347998080,1736263845708,-636.5,0.00010239,2]
[347998082,1736263845718,-500.0,0.00010239,2]
[347998084,1736263845727,-520.28,0.00010239,2]
[347998086,1736263845736,-500.0,0.00010239,2]
[347998088,1736263845746,-573.98,0.00010239,2]
[347998089,1736263845755,-566.99,0.00010239,2]
[347998091,1736263845765,-500.0,0.00010239,2]
[347998093,1736263845775,-524.42,0.00010239,2]
[347998096,1736263845785,-500.0,0.00010239,2]
[347998100,1736263845794,-509.08,0.00010239,2]
[347998102,1736263845803,-534.75,0.00010239,2]
[347998103,1736263845814,-906.3,0.00010239,2]
[347998106,1736263845823,-500.0,0.00010239,2]
[347998108,1736263845833,-500.0,0.00010239,2]
[347998110,1736263845842,-508.55,0.00010239,2]
[347998112,1736263845852,-500.0,0.00010239,2]
[347998114,1736263845861,-500.0,0.00010239,2]
[347998116,1736263845873,-571.55,0.00010239,2]
[347998118,1736263845882,-884.36,0.00010239,2]
[347998120,1736263845892,-500.0,0.00010239,2]
[347998122,1736263845901,-500.0,0.00010239,2]
[347998123,1736263845911,-500.0,0.00010239,2]
[347998125,1736263845922,-500.0,0.00010239,2]
[347998127,1736263845931,-852.43,0.00010239,2]
[347998130,1736263845941,-500.0,0.00010239,2]
[347998132,1736263845951,-500.0,0.00010239,2]
[347998134,1736263845961,-500.0,0.00010239,2]
[347998136,1736263845971,-548.31,0.00010239,2]
[347998138,1736263845980,-500.0,0.00010239,2]
[347998140,1736263845990,-568.64,0.00010239,2]
[347998143,1736263845999,-500.0,0.00010239,2]
[347998145,1736263846008,-500.0,0.00010239,2]
[347998147,1736263846019,-500.0,0.00010239,2]
[347998148,1736263846028,-500.0,0.00010239,2]
[347998149,1736263846038,-500.0,0.00010239,2]
[347998151,1736263846048,-516.55,0.00010239,2]
[347998153,1736263846058,-500.0,0.00010239,2]
[347998154,1736263846068,-500.0,0.00010239,2]
[347998155,1736263846078,-500.0,0.00010239,2]
[347998156,1736263846088,-500.0,0.00010239,2]
[347998157,1736263846098,-599.41,0.00010239,2]
[347998158,1736263846108,-500.0,0.00010239,2]
[347998159,1736263846123,-811.0,0.00010239,2]
[347998162,1736263846134,-500.0,0.00010239,2]
[347998164,1736263846145,-500.0,0.00010239,2]
[347998166,1736263846154,-991.0,0.00010239,2]
[347998167,1736263846164,-500.0,0.00010239,2]
[347998169,1736263846173,-500.0,0.00010239,2]
[347998171,1736263846183,-550.06,0.00010239,2]
[347998174,1736263846196,-597.15,0.00010239,2]
[347998176,1736263846206,-620.73,0.00010239,2]
[347998177,1736263846215,-500.0,0.00010239,2]
[347998179,1736263846226,-778.27,0.00010239,2]
[347998181,1736263846236,-564.27,0.00010239,2]
[347998183,1736263846246,-500.0,0.00010239,2]
[347998186,1736263846255,-500.0,0.00010239,2]
[347998188,1736263846266,-523.85,0.00010239,2]
[347998190,1736263846276,-503.12,0.00010239,2]
[347998191,1736263846286,-1388.8,0.00010239,2]
[347998194,1736263846295,-513.18,0.00010239,2]
[347998196,1736263846305,-500.0,0.00010239,2]
[347998197,1736263846315,-531.76,0.00010239,2]
[347998200,1736263846325,-352.63392716,0.00010239,2]
[347998202,1736263846334,-500.0,0.00010239,2]
[347998204,1736263846344,-561.53,0.00010239,2]
[347998206,1736263846355,-570.52,0.00010239,2]
[347998208,1736263846368,-2075.27,0.00010239,2]
[347998210,1736263846377,-500.0,0.00010239,2]
[347998212,1736263846386,-500.0,0.00010239,2]
[347998214,1736263846396,-500.0,0.00010239,2]
[347998216,1736263846405,-500.0,0.00010239,2]
[347998218,1736263846415,-1754.46,0.00010239,2]
[347998219,1736263846424,-500.0,0.00010239,2]
[347998222,1736263846434,-500.0,0.00010239,2]
[347998223,1736263846444,-500.0,0.00010239,2]
[347998225,1736263846454,-500.0,0.00010239,2]
[347998228,1736263846464,-287.60461101,0.00010239,2]
[347998229,1736263846474,-500.0,0.00010239,2]
[347998231,1736263846483,-500.0,0.00010239,2]
[347998233,1736263846494,-500.0,0.00010239,2]
[347998235,1736263846504,-557.43,0.00010239,2]
[347998238,1736263846515,-500.0,0.00010239,2]
[347998239,1736263846524,-588.14,0.00010239,2]
[347998241,1736263846534,-500.0,0.00010239,2]
[347998243,1736263846543,-500.0,0.00010239,2]
[347998245,1736263846553,-548.77,0.00010239,2]
[347998247,1736263846563,-656.79,0.00010239,2]
[347998249,1736263846573,-555.13,0.00010239,2]
[347998251,1736263846583,-500.0,0.00010239,2]
[347998253,1736263846593,-500.0,0.00010239,2]
[347998255,1736263846602,-575.23,0.00010239,2]
[347998257,1736263846611,-500.0,0.00010239,2]
[347998259,1736263846627,-456.70516086,0.00010239,2]
[347998261,1736263846637,-500.0,0.00010239,2]
[347998263,1736263846651,-500.0,0.00010239,2]
[347998265,1736263846660,-500.0,0.00010239,2]
[347998267,1736263846669,-277.73920255,0.00010239,2]
[347998269,1736263846678,-1047.1,0.00010239,2]
[347998271,1736263846688,-619.43,0.00010239,2]
[347998273,1736263846697,-567.84,0.00010239,2]
[347998275,1736263846706,-514.55,0.00010239,2]
[347998277,1736263846716,-500.0,0.00010239,2]
[347998278,1736263846725,-500.0,0.00010239,2]
[347998279,1736263846735,-834.65,0.00010239,2]
[347998280,1736263846744,-500.0,0.00010239,2]
[347998281,1736263846753,-210.13990582,0.00010239,2]
[347998282,1736263846762,-731.55,0.00010239,2]
[347998283,1736263846772,-580.77,0.00010239,2]
[347998284,1736263846781,-500.0,0.00010239,2]
[347998285,1736263846791,-500.0,0.00010239,2]
[347998286,1736263846800,-655.93,0.00010239,2]
[347998287,1736263846810,-500.0,0.00010239,2]
[347998288,1736263846820,-500.0,0.00010239,2]
[347998290,1736263846830,-500.0,0.00010239,2]
[347998292,1736263846839,-837.41,0.00010239,2]
[347998294,1736263846849,-500.0,0.00010239,2]
[347998296,1736263846858,-500.0,0.00010239,2]
[347998298,1736263846875,-751.57,0.00010239,2]
[347998300,1736263846885,-553.46,0.00010239,2]
[347998301,1736263846895,-1406.87,0.00010239,2]
[347998303,1736263846905,-908.17,0.00010239,2]
[347998305,1736263846917,-621.0,0.00010239,2]
[347998307,1736263846927,-1446.51,0.00010239,2]
[347998308,1736263846937,-500.0,0.00010239,2]
[347998309,1736263846947,-549.99,0.00010239,2]
[347998310,1736263846956,-981.24,0.00010239,2]
[347998311,1736263846966,-500.0,0.00010239,2]
[347998312,1736263846975,-1988.67,0.00010239,2]
[347998313,1736263846984,-500.0,0.00010239,2]
[347998314,1736263846994,-741.68,0.00010239,2]
[347998315,1736263847003,-616.1,0.00010239,2]
[347998316,1736263847012,-500.0,0.00010239,2]
[347998317,1736263847022,-500.0,0.00010239,2]
[347998318,1736263847031,-441.40078945,0.00010239,2]
[347998319,1736263847040,-500.0,0.00010239,2]
[347998320,1736263847050,-500.0,0.00010239,2]
[347998321,1736263847059,-500.0,0.00010239,2]
[347998322,1736263847069,-863.83,0.00010239,2]
[347998323,1736263847078,-500.0,0.00010239,2]